fUST/lending_fUST_20260213
["ID","MTS","AMOUNT","RATE_DAILY","PERIOD"]
[405265886,1770929252094,-2490.22889358,0.0003043,2]
[405265887,1770929252114,-2832.12546496,0.0003044,30]
[405265888,1770929354135,-150.0,0.0002589,2]
[405265889,1770929354155,-177.0,0.0002789,2]
[405265890,1770929354179,-204.0,0.0002989,2]
[405265891,1770929354199,-206.0,0.0003,14]
[405265892,1770929354219,-547.7405497,0.00030439,2]
[405265893,1770929354239,-400.0,0.00030439,2]
[405265894,1770929354258,-151.0,0.0003044,7]
[405265895,1770929354281,-418.996065,0.0003044,7]
[405265896,1770929354301,-418.996065,0.0003044,7]
[405265897,1770929354322,-418.996065,0.0003044,7]
[405265898,1770929354343,-418.996065,0.0003044,7]
[405265899,1770929354362,-40402.6528,0.0003044,30]
[405265900,1770929354382,-169.298477,0.00030458,2]
[405265901,1770929354403,-417.0,0.00030463,2]
[405265902,1770929354425,-250.0,0.00030495,28]
[405265903,1770929354445,-151.0,0.00030495,28]
[405265904,1770929354466,-417.0,0.00030518,2]
[405265905,1770929354485,-417.0,0.00030573,2]
[405265906,1770929354507,-240.0,0.00030577,28]
[405265907,1770929354529,-417.0,0.00030628,2]
[405265908,1770929354550,-160.0,0.00030659,28]
[405265909,1770929354570,-417.0,0.00030682,2]
[405265910,1770929354591,-417.0,0.00030737,2]
[405265911,1770929354612,-9781.84779159,0.00030767,3]
[405265912,1770929354631,-417.0,0.00030792,2]
[405265913,1770929354651,-417.0,0.00030847,2]
[405265914,1770929354670,-417.0,0.00030901,2]
[405265915,1770929354690,-433.0,0.00030956,2]
[405265916,1770929354713,-10138.23092149,0.00031131,3]
[405265917,1770929354732,-874.32,0.00031166,3]
[405265918,1770929354755,-437.16,0.00031399,3]
[405265919,1770929354776,-422.85596041,0.00031454,2]
[405265920,1770929354797,-10494.61405138,0.00031495,3]
[405265921,1770929354816,-488.928499,0.0003153,2]
[405265922,1770929354837,-880.0712982,0.0003153,2]
[405265923,1770929354858,-1564.5711968,0.0003153,2]
[405265924,1770929354881,-10850.99718128,0.00031859,3]
[405265925,1770929355063,-418.996065,0.00031859,7]
[405265926,1770929355087,-418.996065,0.00031859,7]
[405265927,1770929355107,-418.996065,0.00031859,7]
[405265928,1770929355127,-418.996065,0.00031859,7]
[405265929,1770929355147,-231.0,0.0003189,2]
[405265930,1770929355168,-390.96755023,0.00032,5]
[405265931,1770929355188,-170.30058203,0.00032,5]
[405265932,1770929355208,-500.0,0.00032098,7]
[405265933,1770929355231,-597.1,0.00032213,10]
[405265934,1770929355252,-497.58,0.00032213,10]
[405265935,1770929355275,-3189.61245845,0.00032223,3]
[405265953,1770929431773,-150.0,0.00027397,5]
[405265955,1770929431782,-250.0,0.00027945,5]
[405265957,1770929431793,-350.0,0.00028493,5]
[405265959,1770929431802,-503.88219611,0.00029041,5]
[405265961,1770929431811,-400.0,0.00032222,2]
[405265963,1770929431821,-1625.1658963,0.00032223,3]
[405266011,1770929432244,-5862.2862951,0.00032223,3]
[405266098,1770929438217,-530.31566133,0.00032223,3]
[405266100,1770929438226,-434.41531848,0.00032277,5]
[405266102,1770929438235,-742.60909304,0.0003228,2]
[405266104,1770929438245,-2996.4280697,0.0003228,2]
[405266106,1770929438255,-1002.55619142,0.00032286,15]
[405266107,1770929438265,-291.17449375,0.00032505,2]
[405266109,1770929438275,-517.1259009,0.00032505,2]
[405266111,1770929438285,-185.63194261,0.00032505,2]
[405266113,1770929438295,-742.52777044,0.00032505,2]
[405266115,1770929438304,-1670.6874835,0.00032505,2]
[405266117,1770929438313,-2970.11108178,0.00032505,2]
[405266119,1770929438323,-259.45129528,0.00032505,2]
[405266120,1770929438332,-296.51576603,0.00032505,2]
[405266122,1770929438343,-244.35771277,0.00032505,2]
[405266124,1770929438354,-8100.43997907,0.00032587,3]
[405266146,1770929438590,-3009.49586798,0.00032587,3]
[405266281,1770929440069,-366.4645,0.00032587,3]
[405266296,1770929440213,-500.0,0.00029193,2]
[405266298,1770929440223,-91.13128137,0.00032587,3]
[405266300,1770929440233,-688.0,0.00032791,30]
[405266302,1770929440246,-493.0,0.00032791,30]
[405266304,1770929440256,-1019.55872948,0.00032849,6]
[405266798,1770929445550,-1022.54110024,0.00032849,6]
[405266835,1770929445887,-1495.48241748,0.00032849,6]
[405266837,1770929445897,-2261.11,0.00032876,120]
[405266839,1770929445906,-234.52099831,0.0003289,2]
[405266841,1770929445915,-834.96120727,0.0003289,2]
[405266979,1770929447209,-7762.45966076,0.0003289,2]
[405266981,1770929447219,-761.44563378,0.000329,14]
[405266983,1770929447231,-2366.09436622,0.000329,14]
[405266985,1770929447241,-230.73,0.000329,7]
[405266987,1770929447251,-11928.93900812,0.0003295,3]
[405266989,1770929447261,-596.7,0.0003298,10]
[405266991,1770929447270,-497.25,0.0003298,10]
[405266994,1770929447281,-25.76030831,0.0003298,10]
[405267178,1770930447125,-150.0,0.00025376,2]
[405267179,1770930447145,-169.70744721,0.00026141,5]
[405267180,1770930447170,-177.0,0.00027376,2]
[405267181,1770930447191,-177.17618154,0.00027769,5]
[405267182,1770930447211,-177.17618153,0.00028628,5]
[405267183,1770930447234,-204.0,0.00029376,2]
[405267184,1770930447254,-2300.89570441,0.000295,2]
[405267189,1770930555098,-300.0,0.00029499,2]
[405267190,1770930555118,-4702.78113484,0.000295,2]
[405267191,1770930560106,-2996.32316075,0.000295,2]
[405267192,1770930560128,-513.3,0.0002978,2]
[405267193,1770930560150,-10269.5010713,0.00030511,2]
[405267194,1770930560171,-637.4512824,0.00030765,2]
[405267195,1770930560191,-223.9295069,0.00030971,2]
[405267196,1770930560212,-231.0,0.00031376,2]
[405267197,1770930560232,-420.0,0.0003181,2]
[405267198,1770930560253,-407.09200203,0.00031973,2]
[405267199,1770930560282,-191.63882942,0.00031973,2]
[405267200,1770930560303,-216.50094907,0.00032,5]
[405267201,1770930560322,-1143.04482619,0.00032,5]
[405267202,1770930560344,-1735.92361265,0.00032,5]
[405267203,1770930560363,-440.48590258,0.00032,5]
[405267204,1770930560384,-2400.10160279,0.00032,2]
[405267205,1770930573124,-641.05268557,0.00032,2]
[405267206,1770930574096,-396.02308534,0.00032472,2]
[405267207,1770930574119,-959.1426567,0.00032526,2]
[405267208,1770930574141,-668.593475,0.00032526,2]
[405267243,1770930632056,-338.324975,0.00032548,2]
[405267566,1770930640294,-404.28411804,0.00032548,2]
[405267568,1770930640303,-221.64,0.000329,3]
[405267570,1770930640313,-400.0,0.00032969,2]
[405267572,1770930640323,-151.0,0.0003297,2]
[405267574,1770930640332,-151.0,0.0003297,2]
[405267576,1770930640342,-151.0,0.0003297,2]
[405267578,1770930640352,-151.0,0.0003297,2]
[405267580,1770930640361,-151.0,0.0003297,2]
[405267582,1770930640370,-151.0,0.0003297,2]
[405267584,1770930640380,-188.25081267,0.0003297,2]
[405267586,1770930640389,-2000.0,0.00032979,10]
[405267588,1770930640398,-500.0,0.00032979,10]
[405267590,1770930640407,-500.0,0.00032979,10]
[405267592,1770930640416,-500.0,0.00032979,10]
[405267594,1770930640425,-201.93286099,0.00032979,10]
[405267596,1770930640435,-582.45033253,0.00032979,10]
[405267597,1770930640444,-209.40437684,0.00032979,10]
[405267599,1770930640453,-217.15233878,0.00032979,10]
[405267601,1770930640462,-225.18697532,0.00032979,10]
[405267603,1770930640471,-233.51889341,0.00032979,10]
[405267605,1770930640482,-1403.93868699,0.00032979,10]
[405267607,1770930640491,-242.15909246,0.00032979,10]
[405267609,1770930640500,-251.11897888,0.00032979,10]
[405267611,1770930640509,-151.0,0.00032979,10]
[405267613,1770930640518,-260.4103811,0.00032979,10]
[405267615,1770930640526,-151.08022891,0.00032979,10]
[405267617,1770930640536,-270.0455652,0.00032979,10]
[405267619,1770930640545,-280.03725112,0.00032979,10]
[405267621,1770930640554,-290.39862941,0.00032979,10]
[405267623,1770930640563,-301.1433787,0.00032979,10]
[405267625,1770930640572,-250.0,0.00032979,10]
[405267627,1770930640581,-250.0,0.00032979,10]
[405267629,1770930640590,-250.0,0.00032979,10]
[405267631,1770930640599,-272.19696825,0.00032979,10]
[405267633,1770930640608,-16391.8327966,0.0003299,2]
[405267635,1770930640617,-218.24,0.0003299,10]
[405267637,1770930640626,-373.71,0.0003299,10]
[405267639,1770930640637,-311.42,0.0003299,10]
[405267641,1770930640646,-259.52,0.0003299,10]
[405267643,1770930640655,-2166.9,0.00032999,120]
[405267645,1770930640667,-80794.75633083,0.00033,120]
[405268077,1770930644970,-418.725,0.00033,120]
[405268080,1770930644983,-696.14580078,0.00033,120]
[405268206,1770930646147,-11636.2789661,0.00033,120]
[405268870,1770930676070,227.65561046,0.00032406,2]
[405268872,1770930743384,623.66863334,0.00030137,120]
[405268873,1770931270434,165.9474586,0.00013699,2]
[405268887,1770931627135,-302.29910641,0.00024211,2]
[405268888,1770931716246,358.43836821,0.00019,20]
[405268891,1770931745087,-804.09706895,0.00023969,2]
[405268892,1770931745108,-150.0,0.00024705,2]
[405268893,1770931745130,-177.0,0.00026705,2]
[405268894,1770931747135,-178.0485,0.00028299,2]
[405268895,1770931747157,-230.32060973,0.00028705,2]
[405268896,1770931747178,-300.0,0.00029999,2]
[405268897,1770931747199,-1216.17691087,0.0003,60]
[405268898,1770931767096,-4799.81219273,0.0003,60]
[405268899,1770931767116,-478.1791,0.0003044,30]
[405268918,1770931832129,-511.58584547,0.00032,5]
[405268919,1770931832138,-964.21483041,0.0003212,30]
[405268920,1770931832150,-116.75074,0.0003212,30]
[405268921,1770931832158,-1521.94926,0.00032192,50]
[405268922,1770931832188,-500.0,0.00032192,50]
[405268964,1770931833087,1765.40586895,0.0003102,24]
[405268965,1770931833574,1265.92443644,0.00031108,26]
[405269647,1770931845051,-499.48143251,0.00031108,26]
[405269649,1770931845061,-1765.40586895,0.00031196,28]
[405269650,1770931845068,-38.3750739,0.00032192,50]
[405269651,1770931845077,-2060.3243339,0.00032286,52]
[405269652,1770931845085,-400.0,0.00032472,2]
[405269653,1770931845093,-381.96055923,0.00032473,57]
[405269654,1770931846043,-682.65093723,0.00031637,39]
[405269656,1770931846325,-728.35376944,0.00031637,39]
[405269657,1770931846439,-354.40116228,0.00031637,39]
[405269658,1770931846449,-1765.40586895,0.00031726,41]
[405269659,1770931846459,-1678.36377467,0.00032473,57]
[405269660,1770931846469,-344.94989295,0.00032505,2]
[405269661,1770931846478,-612.63100989,0.00032505,2]
[405269662,1770931846488,-376.85222564,0.00032505,2]
[405269663,1770931846497,-2060.3243339,0.00032566,59]
[405269664,1770931846507,-2060.3243339,0.0003266,61]
[405269665,1770931846517,-800.0,0.00032728,2]
[405269666,1770931846526,-2060.3243339,0.00032753,63]
[405269667,1770931846536,-2060.3243339,0.00032846,65]
[405269668,1770931846547,-2060.3243339,0.0003294,68]
[405269669,1770931846557,-153.82,0.00032999,34]
[405269670,1770931846567,-207.66,0.00033,7]
[405269671,1770931846577,-500.0,0.00033,120]
[405269672,1770931846587,-4333.78458211,0.00033,120]
[405269680,1770932743125,-150.0,0.00025376,2]
[405269681,1770932743148,-177.0,0.00027376,2]
[405269682,1770932743168,-400.0,0.00030135,2]
[405269683,1770932743188,-500.0,0.00030136,2]
[405269684,1770932743209,-343.99120538,0.00030136,2]
[405269685,1770932743231,-500.0,0.00030136,2]
[405269686,1770932743251,-500.0,0.00030136,2]
[405269687,1770932743273,-115.00177559,0.00030136,2]
[405269688,1770932830990,-3598.31510549,0.00030036,2]
[405269689,1770932831013,-400.0,0.00030135,2]
[405269690,1770932831036,-537.83342915,0.00030137,120]
[405269691,1770932951103,-2515.38826199,0.00024953,2]
[405269692,1770932956205,-400.0,0.00030135,2]
[405269693,1770932956226,-500.0,0.00030136,2]
[405269694,1770932956248,-500.0,0.00030136,2]
[405269695,1770932956271,-500.0,0.00030136,2]
[405269696,1770932956292,-580.89752251,0.00030136,2]
[405269697,1770932956311,-390.054129,0.00030367,2]
[405269698,1770932956331,-1924.5461,0.0003044,30]
[405269699,1770932956349,-177.250344,0.00030553,60]
[405269700,1770932956369,-500.0,0.00031673,7]
[405270456,1770933045251,-298.44366455,0.00031814,43]
[405270618,1770933046428,-39.2764494,0.00031814,43]
[405270621,1770933046439,-1427.685755,0.00031814,43]
[405270623,1770933046449,-1765.40586895,0.00031902,46]
[405270624,1770933046458,-1765.40586895,0.0003199,48]
[405270627,1770933046467,-373.25576278,0.00032,2]
[405270629,1770933046477,-231.21083583,0.00032078,2]
[405270631,1770933046486,-400.0,0.00032078,2]
[405270633,1770933046495,-1765.40586895,0.00032079,50]
[405270634,1770933046505,-787.57242207,0.00032167,52]
[405271423,1770933054684,150.0,0.0002589,2]
[405271446,1770933054907,227.56079226,0.0002789,2]
[405271554,1770933094299,473.9039639,0.00031613,2]
[405271555,1770933098873,183.14145694,0.00029208,2]
[405271556,1770933133264,152.78506485,0.00030137,10]
[405271573,1770934029131,-1724.92968895,0.00023969,2]
[405271574,1770934029153,-500.0,0.00024456,2]
[405271575,1770934029173,-500.0,0.00024456,2]
[405271576,1770934029193,-6.84616748,0.00029482,21]
[405271577,1770934032114,-227.67383252,0.00029482,21]
[405271578,1770934032139,-172.28075914,0.00030137,2]
[405271579,1770934032160,-172.28075914,0.00031053,23]
[405271580,1770934032181,-2009.384484,0.00031201,2]
[405271581,1770934032203,-405.0,0.00031754,2]
[405271582,1770934032223,-188.0,0.00031862,3]
[405271583,1770934032244,-403.0,0.00031864,7]
[405271584,1770934032264,-172.28075914,0.00031968,45]
[405271585,1770934032284,-248.83717518,0.00032,2]
[405271586,1770934032305,-174.5683624,0.00032,5]
[405271587,1770934032325,-977.83344688,0.00032167,52]
[405271588,1770934032349,-742.60909304,0.00032168,2]
[405271589,1770934032370,-1765.40586895,0.00032255,54]
[405271590,1770934032394,-403.0,0.00032267,2]
[405271591,1770934032417,-1765.40586895,0.00032343,57]
[405271592,1770934032438,-374.78608069,0.00032432,59]
[405271593,1770934047121,-1390.61978826,0.00032432,59]
[405271594,1770934047143,-165.19583871,0.00032548,2]
[405271595,1770934047165,-297.05515716,0.00032548,2]
[405271596,1770934047187,-258.03452769,0.00032548,2]
[405271599,1770934164080,-1627.7361317,0.00030424,2]
[405271600,1770934170704,742.60909304,0.00030518,2]
[405271601,1770934206563,623.66863334,0.00024953,2]
[405271643,1770934234556,249.34565626,0.00025205,7]
[405271720,1770934239251,-500.0,0.00031963,7]
[405271722,1770934239262,-165.89145012,0.00032,2]
[405271724,1770934239274,-263.0,0.00032289,30]
[405271727,1770934239288,-71.6200948,0.00032548,2]
[405271729,1770934239301,-170.42733661,0.00032548,2]
[405271731,1770934239312,-314.33046047,0.00032548,2]
[405271733,1770934239323,-452.0,0.00032619,30]
[405271735,1770934239333,-714.0,0.00032619,30]
[405271737,1770934239343,-412.48365118,0.00032669,5]
[405271739,1770934239354,-252.84158989,0.00032669,5]
[405271741,1770934239364,-403.0,0.00032778,2]
[405271743,1770934239376,-172.28075914,0.00032884,66]
[405271747,1770934239387,-153.821,0.0003299,34]
[405271749,1770934239402,-297.04,0.0003299,3]
[405271751,1770934239412,-82.28592263,0.0003299,3]
[405271757,1770934239465,-808.85407737,0.0003299,3]
[405271759,1770934239476,-759.39789225,0.0003299,2]
[405272378,1770934245719,-773.1844467,0.0003299,2]
[405272418,1770934246102,-4112.7,0.0003299,2]
[405273402,1770934283574,429.52205352,0.000301,7]
[405273403,1770934325431,1227.03959024,0.00030833,7]
[405273404,1770934483071,303.10001603,0.000189,2]
[405273405,1770934483138,450.04896548,0.00019089,2]
[405273413,1770935230114,-231.0,0.00025376,2]
[405273414,1770935230135,-189.11332016,0.00030422,2]
[405273415,1770935230155,-500.0,0.00030422,2]
[405273416,1770935230176,-2088.90879463,0.00030423,7]
[405273417,1770935240090,-4346.36883585,0.00030423,7]
[405273418,1770935251071,-2573.43003121,0.00030423,7]
[405273419,1770935256003,2932.6823821,0.00019,2]
[405273421,1770935358083,-991.29233831,0.00030423,7]
[405273422,1770935358110,-8773.0,0.00030423,7]
[405273449,1770935431686,-168.0,0.00031728,2]
[405273450,1770935431697,-416.0,0.0003198,2]
[405273452,1770935431707,-165.89145013,0.00032,2]
[405273453,1770935431717,-1612.034862,0.00032,120]
[405273454,1770935431727,-416.0,0.00032053,2]
[405273455,1770935431736,-416.0,0.00032165,7]
[405273456,1770935431746,-151.0,0.00032165,7]
[405273457,1770935431755,-658.75594032,0.00032382,2]
[405273458,1770935431765,-742.60909304,0.00032455,2]
[405273459,1770935431775,-2717.27906982,0.00032514,2]
[405273460,1770935431809,-285.93667013,0.00032514,2]
[405273461,1770935431820,-37.93854841,0.00032514,2]
[405273462,1770935431830,-585.46660955,0.00032548,2]
[405273463,1770935431841,-484.46653473,0.00032548,2]
[405273464,1770935431850,-358.87557715,0.00032548,2]
[405273465,1770935431860,-388.29280273,0.00032548,2]
[405273466,1770935431871,-183.626596,0.00032548,7]
[405273467,1770935431881,-219.03247263,0.00032548,7]
[405273468,1770935431893,-32.36516637,0.00032548,7]
[405273469,1770935431902,-251.397639,0.00032548,7]
[405273470,1770935431911,-251.397639,0.00032548,7]
[405273471,1770935431921,-251.397639,0.00032548,7]
[405273472,1770935431931,-153.821,0.00032548,32]
[405273473,1770935431941,-101.2875833,0.00032548,7]
[405273474,1770935431952,-49.7124167,0.00032548,7]
[405273475,1770935431961,-151.0,0.00032548,7]
[405273476,1770935431970,-379.12495801,0.00032548,2]
[405273477,1770935431980,-849.14141978,0.00032548,2]
[405273491,1770935437865,-22.89834273,0.00032548,2]
[405273493,1770935437875,-443.31943992,0.00032548,2]
[405273495,1770935437886,-311.34805514,0.00032669,5]
[405273497,1770935437896,-1087.69875325,0.00032789,5]
[405273499,1770935437905,-302.98079683,0.00032975,5]
[405273501,1770935437914,-999.10080927,0.00032989,2]
[405273503,1770935437925,-151.0,0.0003299,31]
[405273505,1770935437934,-251.397639,0.0003299,31]
[405273507,1770935437944,-251.397639,0.0003299,31]
[405273509,1770935437953,-251.397639,0.0003299,31]
[405273511,1770935437962,-251.397639,0.0003299,31]
[405273513,1770935437971,-594.08,0.0003299,3]
[405273515,1770935437980,-15477.1305334,0.0003299,2]
[405273517,1770935437990,-971.55,0.0003299,10]
[405273519,1770935437999,-1852.69,0.0003299,10]
[405273521,1770935438008,-251.397639,0.00032999,31]
[405273523,1770935438018,-251.397639,0.00032999,31]
[405273525,1770935438027,-251.397639,0.00032999,31]
[405273527,1770935438036,-251.397639,0.00032999,31]
[405273529,1770935438045,-2076.61,0.00032999,120]
[405273531,1770935438055,-201.93286099,0.00032999,7]
[405273533,1770935438063,-209.40437684,0.00032999,7]
[405273535,1770935438073,-217.15233878,0.00032999,7]
[405273537,1770935438082,-225.18697532,0.00032999,7]
[405273539,1770935438092,-233.51889341,0.00032999,7]
[405273541,1770935438102,-185.27027477,0.00032999,7]
[405273543,1770935438111,-831.90369122,0.00032999,7]
[405273545,1770935438120,-500.0,0.00032999,7]
[405273547,1770935438129,-10785.86991518,0.00033,120]
[405273549,1770935438142,-3761.30556103,0.00033,120]
[405273556,1770935438195,-5084.86458437,0.00033,120]
[405274308,1770935446016,-482.92987065,0.0003299,10]
[405274310,1770935446028,-429.52205352,0.0003299,10]
[405274312,1770935446042,-469.42642799,0.0003299,10]
[405274424,1770935921062,242.0,0.00023,2]
[405274501,1770936637966,-165.89145013,0.00032,2]
[405274502,1770936637976,-806.017431,0.00032,120]
[405274503,1770936637985,-742.60909304,0.0003233,2]
[405274504,1770936637995,-432.85238063,0.00032548,2]
[405274505,1770936638005,-1548.74261821,0.00032548,2]
[405274506,1770936638014,-285.62,0.000328,2]
[405274507,1770936638024,-7946.2465875,0.00032947,2]
[405274508,1770936638034,-13929.41748,0.0003299,2]
[405274509,1770936638043,-1391.83,0.0003299,10]
[405274510,1770936638053,-1159.86,0.0003299,10]
[405274511,1770936638063,-1417.32594094,0.00032999,120]
[405275224,1770937179144,421.0,0.00030137,120]
[405275244,1770937759096,-164.01788159,0.00030137,2]
[405275245,1770937806157,1227.0,0.00030404,7]
[405275264,1770937831964,-562.28378186,0.00032759,2]
[405275268,1770937832023,-180.32531118,0.00032759,2]
[405275269,1770937832033,-316.67468882,0.00032799,2]
[405275270,1770937832044,-83.32531118,0.00032799,2]
[405275271,1770937832054,-4829.30126747,0.000328,2]
[405275304,1770937838308,-5006.54208858,0.000328,2]
[405275306,1770937838318,-785.0,0.000328,30]
[405275308,1770937838328,-684.0,0.000328,30]
[405275310,1770937838338,-1243.0,0.000328,30]
[405275312,1770937838349,-195.5476757,0.00032815,2]
[405275314,1770937838359,-1641.31248389,0.00032945,2]
[405275316,1770937838370,-359.99546781,0.00032945,2]
[405275318,1770937838379,-1477.41015665,0.00032945,2]
[405275320,1770937838391,-691.25743925,0.00032945,2]
[405275322,1770937838400,-4467.67916591,0.00032947,2]
[405275489,1770937840359,-941.90882589,0.00032947,2]
[405275491,1770937840368,-334.0,0.00032951,7]
[405275493,1770937840378,-153.82188695,0.0003299,34]
[405275495,1770937840387,-12536.475732,0.0003299,2]
[405275497,1770937840396,-1089.67,0.0003299,10]
[405275499,1770937840406,-908.06,0.0003299,10]
[405275501,1770937840415,-151.0,0.0003299,31]
[405275503,1770937840425,-756.72,0.0003299,10]
[405275505,1770937840434,-2000.0,0.00032998,7]
[405275507,1770937840443,-1050.14355516,0.00032999,120]
[405276062,1770937845832,293.87,0.000301,60]
[405276109,1770937846321,-880.88644484,0.00032999,120]
[405276111,1770937846331,-24785.88808128,0.00033,120]
[405276165,1770937846832,-475.01864642,0.00033,120]
[405277420,1770937891867,429.52205352,0.000301,7]
[405278759,1770938321307,-308.66006505,0.00042541,30]
[405278760,1770938321353,-255.9,0.00042541,120]
[405278761,1770938321396,-1627.30564231,0.00042541,35]
[405278762,1770938321439,-546.01435397,0.00042541,120]
[405278763,1770938321485,-998.58469006,0.00042541,30]
[405278764,1770938321528,-1527.20935049,0.00042541,60]
[405278765,1770938321570,-154.37835006,0.00042541,30]
[405278766,1770938321612,-417.46847459,0.00042541,30]
[405278767,1770938321654,-229.39289526,0.00042541,120]
[405278768,1770938321701,-174.42271128,0.00042541,120]
[405278769,1770938321759,-164.8601794,0.00042541,120]
[405278770,1770938321817,-171.915737,0.00042541,31]
[405278771,1770938321879,-1718.17322192,0.00042541,120]
[405278772,1770938321936,-1507.33224774,0.00042541,120]
[405278773,1770938321979,-182.90851,0.00042541,60]
[405278774,1770938322018,-268.92565049,0.00042541,120]
[405278775,1770938322059,-971.24674949,0.00042541,30]
[405278776,1770938322102,-666.8782169,0.00042541,120]
[405278777,1770938322153,-300000.0,0.00042541,30]
[405278778,1770938322202,-20000.0,0.00042541,60]
[405278779,1770938322245,-5000.0,0.00042541,120]
[405278780,1770938322289,-69991.95,0.00042541,120]
[405278781,1770938322331,-159.69,0.00042541,105]
[405278782,1770938322373,-10000.0,0.00042541,31]
[405278783,1770938322416,-3423.84833123,0.00042541,120]
[405278784,1770938322455,-1100.43971887,0.00042541,120]
[405278785,1770938322495,-169.20501858,0.00042541,30]
[405278786,1770938322534,-1000.0,0.00042541,120]
[405278787,1770938322572,-1000.0,0.00042541,120]
[405278788,1770938322611,-1000.0,0.00042541,120]
[405278789,1770938322651,-1000.0,0.00042541,120]
[405278790,1770938322694,-730.0,0.00042541,120]
[405278791,1770938322734,-5018.0,0.00042541,30]
[405278792,1770938322773,-12591.79037399,0.00042541,30]
[405278793,1770938322815,-697.0,0.00042541,60]
[405278794,1770938322853,-6371.5335471,0.00042541,60]
[405278795,1770938322891,-154681.82720303,0.00042541,120]
[405278796,1770938322928,-4567.0,0.00042541,120]
[405278797,1770938322967,-3129.0,0.00042541,120]
[405278798,1770938323006,-193.0,0.00042541,120]
[405278799,1770938323045,-341.8751888,0.00042541,120]
[405278800,1770938323084,-774.75,0.00042541,120]
[405278801,1770938323123,-1731.63898807,0.00042541,120]
[405278802,1770938323161,-153.34468263,0.00042541,31]
[405278803,1770938323200,-150.79104867,0.00042541,30]
[405278804,1770938323239,-659.91721845,0.00042541,120]
[405278805,1770938323278,-237.47127587,0.00042541,120]
[405278806,1770938323320,-222.71378538,0.00042541,60]
[405278807,1770938323362,-939.64835069,0.00042541,30]
[405278808,1770938323406,-484.98181456,0.00042541,120]
[405278809,1770938323446,-724.54393241,0.00042541,120]
[405278810,1770938323487,-229.22178545,0.00042541,30]
[405278811,1770938323525,-182.03099577,0.00042541,30]
[405278812,1770938323564,-13119.01157274,0.00042541,30]
[405278813,1770938323604,-203.4286962,0.00042541,31]
[405278814,1770938323644,-284.75453498,0.00042541,120]
[405278815,1770938323685,-619.0,0.00042541,120]
[405278816,1770938323729,-284.75453497,0.00042541,120]
[405278817,1770938323768,-2742.78319577,0.00042541,30]
[405278818,1770938323807,-502.77624216,0.00042541,120]
[405278819,1770938323846,-281.51352527,0.00042541,120]
[405278820,1770938323911,-693.41642616,0.00042541,30]
[405278821,1770938323979,-347.7907302,0.00042541,120]
[405278822,1770938324051,-40555.60725422,0.00042541,30]
[405278823,1770938324105,-259.11421131,0.00042541,120]
[405278824,1770938324147,-14193.77,0.00042541,120]
[405278825,1770938324187,-500.0,0.00042541,30]
[405278826,1770938324226,-500.0,0.00042541,30]
[405278827,1770938324264,-507.61219087,0.00042541,30]
[405278828,1770938324304,-1928.0,0.00042541,120]
[405278829,1770938324351,-900.88956316,0.00042541,120]
[405278830,1770938324393,-5000.0,0.00042541,30]
[405278831,1770938324433,-1468.763864,0.00042541,120]
[405278832,1770938324501,-17100.0,0.00042541,30]
[405278833,1770938324702,-3570.23883286,0.00042541,30]
[405278834,1770938324744,-52555.5944,0.00042541,120]
[405278835,1770938324783,-55000.0,0.00042541,30]
[405278836,1770938324822,-5275.96982353,0.00042541,30]
[405278837,1770938324860,-12593.26675102,0.00042541,30]
[405278838,1770938324897,-29304.8529302,0.00042541,30]
[405278839,1770938324936,-17063.41943388,0.00042541,30]
[405278840,1770938324979,-26024.83553047,0.00042541,30]
[405278841,1770938325021,-4095.93499623,0.00042541,30]
[405278842,1770938325063,-299999.979995,0.00042541,30]
[405278843,1770938325103,-9991.03491828,0.00042541,30]
[405278844,1770938325143,-1014247.97522891,0.00042541,30]
[405278845,1770938325183,-49907.48403584,0.00042541,45]
[405278846,1770938325224,-202.72092052,0.00042541,120]